fUSD/lending_fUSD_20250302
["ID","MTS","AMOUNT","RATE_DAILY","PERIOD"]
[355160481,1740937895043,-1429.63528622,0.00027,2]
[355160482,1740937895103,-103388.8901629,0.00027,2]
[355160483,1740937895115,-1046.10299612,0.00027,2]
[355160484,1740937895127,-2639.32562113,0.00027,2]
[355160485,1740937895146,-13880.54347025,0.00027,2]
[355160486,1740937895158,-1875.56927,0.00027,2]
[355160487,1740937895170,-11782.01652183,0.00027,2]
[355160488,1740937895182,-4220.74957971,0.00027,2]
[355160489,1740937895951,-500.0,0.00024896,2]
[355160490,1740937895961,-439.95,0.00024896,2]
[355160491,1740937895983,-60.05,0.00024896,2]
[355160492,1740937895994,-500.0,0.0002517,2]
[355160493,1740937896004,-500.0,0.0002517,2]
[355160494,1740937896015,-500.0,0.00025444,2]
[355160495,1740937896025,-398.34005928,0.00026076,2]
[355160496,1740937896035,-7558.59043879,0.00027,2]
[355160497,1740937896051,-2746.61465141,0.00027,2]
[355160498,1740937896063,-1325.95192759,0.00027,2]
[355160499,1740937896076,-435.15,0.00027,2]
[355160500,1740937896088,-8916.26772021,0.00027,2]
[355160501,1740937896100,-5654.99780683,0.00027,2]
[355160502,1740937896112,-1147.43672195,0.00027,2]
[355160503,1740937896125,-18852.11818387,0.00027,2]
[355160504,1740937896139,-110516.62494272,0.00027,2]
[355160505,1740937896149,-151.0,0.00027,7]
[355160506,1740937896158,-151.0,0.00027,7]
[355160507,1740937896169,-269.818946,0.00027,7]
[355160508,1740937896179,-269.818946,0.00027,7]
[355160509,1740937896188,-614.870963,0.00027,7]
[355160510,1740937896198,-151.0,0.00027,7]
[355160511,1740937896207,-151.0,0.00027,7]
[355160512,1740937896220,-151.0,0.00027,7]
[355160513,1740937896230,-1354.817508,0.00027,7]
[355160514,1740937896240,-1354.817508,0.00027,7]
[355160515,1740937896251,-296.964705,0.00027,7]
[355160516,1740937896260,-296.964705,0.00027,7]
[355160517,1740937896270,-151.0,0.00027,7]
[355160518,1740937896280,-151.0,0.00027,7]
[355160519,1740937896289,-249.874454,0.00027,7]
[355160520,1740937896298,-151.0,0.00027,7]
[355160521,1740937896308,-151.0,0.00027,7]
[355160522,1740937896317,-151.0,0.00027,7]
[355160523,1740937896327,-151.0,0.00027,7]
[355160524,1740937896336,-151.0,0.00027,7]
[355160525,1740937896346,-151.0,0.00027,7]
[355160526,1740937896356,-151.0,0.00027,7]
[355160527,1740937896365,-289.0,0.00027,2]
[355160528,1740937896375,-289.568858,0.00027,7]
[355160529,1740937896384,-220.224945,0.00027,7]
[355160530,1740937896394,-220.224945,0.00027,7]
[355160531,1740937896403,-151.0,0.00027,7]
[355160532,1740937896413,-3064.006348,0.00027,7]
[355160533,1740937896422,-151.0,0.00027,7]
[355160534,1740937896432,-3064.006348,0.00027,7]
[355160535,1740937896442,-151.0,0.00027,7]
[355160536,1740937896452,-151.0,0.00027,7]
[355160537,1740937896466,-151.0,0.00027,7]
[355160538,1740937896476,-169.63389,0.00027,7]
[355160539,1740937896486,-169.63389,0.00027,7]
[355160540,1740937896496,-151.0,0.00027,7]
[355160541,1740937896505,-375.690979,0.00027,7]
[355160542,1740937896515,-375.690979,0.00027,7]
[355160543,1740937896525,-154.735598,0.00027,7]
[355160544,1740937896535,-384.517256,0.00027,7]
[355160545,1740937896544,-384.517256,0.00027,7]
[355160546,1740937896554,-151.0,0.00027,7]
[355160547,1740937896563,-151.0,0.00027,7]
[355160548,1740937896573,-151.0,0.00027,7]
[355160549,1740937896582,-151.0,0.00027,7]
[355160550,1740937896592,-151.0,0.00027,7]
[355160551,1740937896603,-248.019775,0.00027,7]
[355160552,1740937896612,-248.019775,0.00027,7]
[355160553,1740937896623,-1650.214993,0.00027,7]
[355160554,1740937896634,-151.0,0.00027,7]
[355160555,1740937896644,-1650.214993,0.00027,7]
[355160556,1740937896655,-230.222455,0.00027,7]
[355160557,1740937896665,-230.222455,0.00027,7]
[355160558,1740937896675,-751.482566,0.00027,7]
[355160559,1740937896686,-751.482566,0.00027,7]
[355160560,1740937896696,-10000.0,0.00027,7]
[355160561,1740937896706,-10000.0,0.00027,7]
[355160562,1740937896720,-366.349161,0.00027,7]
[355160563,1740937896730,-366.349161,0.00027,7]
[355160564,1740937896740,-362.39064584,0.00027003,4]
[355160565,1740937896751,-868.08361754,0.00027031,2]
[355160566,1740937896761,-500.0,0.00027068,2]
[355160567,1740937896771,-212.0767644,0.00027068,2]
[355160568,1740937896782,-235.73587784,0.00027069,2]
[355160569,1740937896792,-588.82,0.00027088,2]
[355160570,1740937896802,-500.0,0.00027088,2]
[355160571,1740937896813,-500.0,0.00027088,2]
[355160572,1740937896823,-500.0,0.00027088,2]
[355160573,1740937896833,-553.15,0.00027088,2]
[355160574,1740937896842,-641.23,0.00027088,2]
[355160575,1740937896853,-500.0,0.00027088,2]
[355160576,1740937896863,-500.0,0.00027088,2]
[355160577,1740937896875,-500.0,0.00027088,2]
[355160578,1740937896885,-500.0,0.00027088,2]
[355160579,1740937896899,-520.82,0.00027088,2]
[355160580,1740937896910,-500.0,0.00027088,2]
[355160581,1740937896920,-500.0,0.00027088,2]
[355160582,1740937896930,-549.79,0.00027088,2]
[355160583,1740937896940,-583.9,0.00027088,2]
[355160584,1740937896955,-500.0,0.00027088,2]
[355160585,1740937896969,-500.0,0.00027088,2]
[355160586,1740937896979,-500.0,0.00027088,2]
[355160587,1740937896989,-500.0,0.00027088,2]
[355160588,1740937896999,-500.0,0.00027088,2]
[355160589,1740937897010,-550.36,0.00027088,2]
[355160590,1740937897020,-627.32,0.00027088,2]
[355160591,1740937897029,-500.0,0.00027088,2]
[355160592,1740937897040,-500.0,0.00027088,2]
[355160593,1740937897050,-617.83,0.00027088,2]
[355160594,1740937897061,-500.0,0.00027088,2]
[355160595,1740937897072,-703.69,0.00027088,2]
[355160596,1740937897082,-599.32,0.00027088,2]
[355160597,1740937897092,-500.0,0.00027088,2]
[355160598,1740937897102,-500.0,0.00027088,2]
[355160599,1740937897113,-500.0,0.00027088,2]
[355160600,1740937897123,-670.1,0.00027088,2]
[355160601,1740937897133,-637.95,0.00027088,2]
[355160602,1740937897144,-813.8,0.00027088,2]
[355160603,1740937897154,-2192.95,0.00027088,2]
[355160604,1740937897166,-500.0,0.00027088,2]
[355160605,1740937897176,-807.59,0.00027088,2]
[355160606,1740937897186,-1250.18,0.00027088,2]
[355160607,1740937897196,-500.0,0.00027088,2]
[355160608,1740937897206,-703.25,0.00027088,2]
[355160609,1740937897219,-1557.45,0.00027088,2]
[355160610,1740937897229,-1624.15,0.00027088,2]
[355160611,1740937897239,-1549.91,0.00027088,2]
[355160612,1740937897249,-1154.14,0.00027088,2]
[355160613,1740937897260,-730.08,0.00027088,2]
[355160614,1740937897270,-500.0,0.00027088,2]
[355160615,1740937897280,-856.1,0.00027088,2]
[355160616,1740937897291,-1218.98,0.00027088,2]
[355160617,1740937897302,-1590.11,0.00027088,2]
[355160618,1740937897312,-998.58,0.00027088,2]
[355160619,1740937897322,-500.0,0.00027088,2]
[355160620,1740937897332,-761.57,0.00027088,2]
[355160621,1740937897341,-763.27,0.00027088,2]
[355160622,1740937897351,-993.48,0.00027088,2]
[355160623,1740937897361,-855.19,0.00027088,2]
[355160624,1740937897372,-500.0,0.00027088,2]
[355160625,1740937897382,-925.83,0.00027088,2]
[355160626,1740937897393,-532.0,0.00027088,2]
[355160627,1740937897403,-604.56,0.00027088,2]
[355160628,1740937897412,-559.41,0.00027088,2]
[355160629,1740937897423,-500.0,0.00027088,2]
[355160630,1740937897433,-565.81,0.00027088,2]
[355160631,1740937897445,-964.16,0.00027088,2]
[355160632,1740937897455,-649.62,0.00027088,2]
[355160633,1740937897466,-500.0,0.00027088,2]
[355160634,1740937897476,-500.0,0.00027088,2]
[355160635,1740937897485,-500.0,0.00027088,2]
[355160636,1740937897495,-1097.56,0.00027088,2]
[355160637,1740937897504,-500.0,0.00027088,2]
[355160638,1740937897514,-1028.47,0.00027088,2]
[355160639,1740937897524,-868.34,0.00027088,2]
[355160640,1740937897534,-500.0,0.00027088,2]
[355160641,1740937897544,-945.74,0.00027088,2]
[355160642,1740937897554,-1222.82,0.00027088,2]
[355160643,1740937897564,-151.0,0.00027088,7]
[355160644,1740937897573,-500.0,0.00027088,2]
[355160645,1740937897583,-883.05,0.00027088,2]
[355160646,1740937897593,-151.0,0.00027088,7]
[355160647,1740937897603,-704.4,0.00027088,2]
[355160648,1740937897614,-6234.66,0.00027088,2]
[355160649,1740937897623,-557.6,0.00027088,2]
[355160650,1740937897634,-500.0,0.00027088,2]
[355160651,1740937897644,-500.0,0.00027088,2]
[355160652,1740937897654,-1146.22,0.00027088,2]
[355160653,1740937897665,-500.0,0.00027088,2]
[355160654,1740937897676,-243.10788,0.00027088,7]
[355160655,1740937897686,-243.10788,0.00027088,7]
[355160656,1740937897696,-500.0,0.00027088,2]
[355160657,1740937897706,-1442.71,0.00027088,2]
[355160658,1740937897719,-500.0,0.00027089,2]
[355160659,1740937897730,-500.0,0.00027089,2]
[355160660,1740937897740,-500.0,0.00027089,2]
[355160661,1740937897750,-500.0,0.00027089,2]
[355160662,1740937897760,-500.0,0.00027089,2]
[355160663,1740937897770,-559.857533,0.00027089,7]
[355160664,1740937897780,-559.857533,0.00027089,7]
[355160665,1740937897790,-158.379694,0.00027089,7]
[355160666,1740937897800,-500.0,0.00027089,2]
[355160667,1740937897810,-500.0,0.00027089,2]
[355160668,1740937897821,-518.68,0.00027089,2]
[355160669,1740937897830,-151.0,0.00027089,7]
[355160670,1740937897840,-231.56578913,0.00027089,2]
[355160671,1740937897850,-648.35,0.00027089,2]
[355160672,1740937897860,-500.0,0.00027089,2]
[355160673,1740937897870,-400.37,0.00027089,2]
[355160674,1740937897880,-151.0,0.00027089,7]
[355160675,1740937897890,-151.0,0.00027089,7]
[355160676,1740937897901,-500.0,0.00027089,2]
[355160677,1740937897976,-151.0,0.00027089,7]
[355160678,1740937897988,-588.19,0.00027089,2]
[355160679,1740937897999,-500.0,0.00027089,2]
[355160680,1740937898009,-500.0,0.00027089,2]
[355160681,1740937898020,-500.0,0.00027089,2]
[355160682,1740937898032,-500.0,0.00027089,2]
[355160683,1740937898043,-500.0,0.00027089,2]
[355160684,1740937898053,-500.0,0.00027089,2]
[355160685,1740937898064,-1850.193824,0.00027089,7]
[355160686,1740937898075,-1850.193824,0.00027089,7]
[355160687,1740937898085,-981.07,0.00027089,2]
[355160688,1740937898095,-893.26,0.00027089,2]
[355160689,1740937898105,-726.79,0.00027089,2]
[355160690,1740937898115,-616.74,0.00027089,2]
[355160691,1740937898125,-561.65,0.00027089,2]
[355160692,1740937898134,-500.0,0.00027089,2]
[355160693,1740937898144,-500.0,0.00027089,2]
[355160694,1740937898153,-500.0,0.00027089,2]
[355160695,1740937898164,-474.71097887,0.00027089,2]
[355160696,1740937898173,-500.0,0.00027089,2]
[355160697,1740937898183,-500.0,0.00027089,2]
[355160698,1740937898193,-560.28,0.00027089,2]
[355160699,1740937898203,-500.0,0.00027089,2]
[355160700,1740937898212,-3950.62,0.00027089,2]
[355160701,1740937898224,-576.41,0.00027089,2]
[355160702,1740937898235,-500.0,0.00027089,2]
[355160703,1740937898244,-489.571373,0.00027089,7]
[355160704,1740937898254,-489.571373,0.00027089,7]
[355160705,1740937898264,-500.0,0.00027089,2]
[355160706,1740937898274,-679.32,0.00027089,2]
[355160707,1740937898285,-500.0,0.00027089,2]
[355160708,1740937898295,-500.0,0.00027089,2]
[355160709,1740937898305,-500.0,0.00027089,2]
[355160710,1740937898314,-500.0,0.00027089,2]
[355160711,1740937898324,-582.51,0.00027089,2]
[355160712,1740937898333,-668.22,0.00027089,2]
[355160713,1740937898343,-500.0,0.00027089,2]
[355160714,1740937898353,-574.39,0.00027089,2]
[355160715,1740937898363,-500.0,0.00027089,2]
[355160716,1740937898373,-661.62,0.00027089,2]
[355160717,1740937898383,-500.0,0.00027089,2]
[355160718,1740937898393,-500.0,0.00027089,2]
[355160719,1740937898403,-500.0,0.00027089,2]
[355160720,1740937898412,-500.0,0.00027089,2]
[355160721,1740937898422,-500.0,0.00027089,2]
[355160722,1740937898431,-551.39,0.00027089,2]
[355160723,1740937898441,-500.0,0.00027089,2]
[355160724,1740937898451,-500.0,0.00027089,2]
[355160725,1740937898462,-227.75,0.00027089,2]
[355160726,1740937898476,-500.0,0.00027089,2]
[355160727,1740937898487,-2139.64,0.00027089,2]
[355160728,1740937898497,-500.0,0.00027089,2]
[355160729,1740937898507,-500.0,0.00027089,2]
[355160730,1740937898519,-666.3,0.00027089,2]
[355160731,1740937898529,-1000.0,0.00027089,2]
[355160732,1740937898538,-506.21,0.00027089,2]
[355160733,1740937898548,-500.0,0.00027089,2]
[355160734,1740937898558,-1243.74,0.00027089,2]
[355160735,1740937898568,-551.88,0.00027089,2]
[355160736,1740937898578,-1338.27,0.00027089,2]
[355160737,1740937898588,-580.22,0.00027089,2]
[355160738,1740937898598,-500.0,0.00027089,2]
[355160739,1740937898607,-500.0,0.00027089,2]
[355160740,1740937898617,-900.63,0.00027089,2]
[355160741,1740937898626,-500.0,0.00027089,2]
[355160742,1740937898636,-711.69,0.00027089,2]
[355160743,1740937898646,-1990.27,0.00027089,2]
[355160744,1740937898655,-349.77,0.00027089,2]
[355160745,1740937898665,-789.39,0.00027089,2]
[355160746,1740937898675,-2000.73,0.00027089,2]
[355160747,1740937898684,-561.03,0.00027089,2]
[355160748,1740937898693,-1144.17,0.00027089,2]
[355160749,1740937898703,-500.0,0.00027089,2]
[355160750,1740937898712,-500.0,0.00027089,2]
[355160751,1740937898724,-151.0,0.00027089,7]
[355160752,1740937898734,-180.866052,0.00027089,7]
[355160753,1740937898744,-812.93,0.00027089,2]
[355160754,1740937898752,-615.1,0.00027089,2]
[355160755,1740937898762,-500.0,0.00027089,2]
[355160756,1740937898771,-623.5,0.00027089,2]
[355160757,1740937898780,-280.88229325,0.00027089,2]
[355160758,1740937898791,-500.0,0.00027089,2]
[355160759,1740937898800,-500.0,0.00027089,2]
[355160760,1740937898809,-762.88,0.00027089,2]
[355160761,1740937898819,-366.349161,0.00027089,7]
[355160762,1740937898830,-366.349161,0.00027089,7]
[355160763,1740937898840,-500.0,0.00027092,2]
[355160764,1740937898849,-450.0,0.00027122,2]
[355160765,1740937898859,-678.56,0.00027123,2]
[355160766,1740937898869,-500.0,0.00027123,2]
[355160767,1740937898879,-500.0,0.00027123,2]
[355160768,1740937898889,-241.48,0.00027123,2]
[355160769,1740937898899,-701.59,0.00027123,2]
[355160770,1740937898908,-500.0,0.00027123,2]
[355160771,1740937898918,-500.0,0.00027123,2]
[355160772,1740937898930,-4000.0,0.00027123,2]
[355160773,1740937898939,-4579.90248197,0.0002713,2]
[355160774,1740937898949,-10234.7496282,0.00027134,2]
[355160775,1740937898961,-2231.13453195,0.00027205,2]
[355160776,1740937898975,-362.39064584,0.0002721,4]
[355160777,1740937898986,-500.0,0.00027262,2]
[355160778,1740937898996,-500.0,0.00027262,2]
[355160779,1740937899006,-1027.09,0.00027262,2]
[355160780,1740937899016,-500.0,0.00027262,2]
[355160781,1740937899026,-500.0,0.00027262,2]
[355160782,1740937899036,-661.31,0.00027262,2]
[355160783,1740937899045,-500.0,0.00027262,2]
[355160784,1740937899056,-664.68,0.00027262,2]
[355160785,1740937899066,-275.7728321,0.00027262,2]
[355160786,1740937899076,-688.44,0.00027262,2]
[355160787,1740937899085,-799.43,0.00027262,2]
[355160788,1740937899095,-1011.96,0.00027262,2]
[355160789,1740937899105,-500.0,0.00027262,2]
[355160790,1740937899114,-547.39,0.00027262,2]
[355160791,1740937899124,-980.75,0.00027262,2]
[355160792,1740937899134,-758.27,0.00027262,2]
[355160793,1740937899143,-500.0,0.00027262,2]
[355160794,1740937899153,-638.55,0.00027262,2]
[355160795,1740937899163,-500.0,0.00027262,2]
[355160796,1740937899172,-500.0,0.00027262,2]
[355160797,1740937899182,-500.0,0.00027262,2]
[355160798,1740937899191,-537.89,0.00027262,2]
[355160799,1740937899201,-1342.57,0.00027262,2]
[355160800,1740937899210,-500.0,0.00027262,2]
[355160801,1740937899222,-501.29,0.00027262,2]
[355160802,1740937899231,-2905.46,0.00027262,2]
[355160803,1740937899240,-500.0,0.00027263,2]
[355160804,1740937899250,-400.963399,0.00027263,2]
[355160805,1740937899260,-877.08,0.00027263,2]
[355160806,1740937899270,-500.0,0.00027263,2]
[355160807,1740937899279,-312.078972,0.00027263,2]
[355160808,1740937899289,-992.81,0.00027263,2]
[355160809,1740937899299,-500.0,0.00027263,2]
[355160810,1740937899308,-1164.54,0.00027263,2]
[355160811,1740937899318,-3123.18,0.00027263,2]
[355160812,1740937899327,-1410.0,0.00027263,2]
[355160813,1740937899337,-500.0,0.00027263,2]
[355160814,1740937899346,-1234.93,0.00027263,2]
[355160815,1740937899357,-1043.6,0.00027263,2]
[355160816,1740937899366,-500.0,0.00027263,2]
[355160817,1740937899376,-1694.27,0.00027263,2]
[355160818,1740937899385,-1334.61,0.00027263,2]
[355160819,1740937899395,-784.6,0.00027263,2]
[355160820,1740937899405,-500.0,0.00027263,2]
[355160821,1740937899414,-1672.23,0.00027263,2]
[355160822,1740937899424,-500.0,0.00027263,2]
[355160823,1740937899434,-2496.59,0.00027263,2]
[355160824,1740937899444,-1537.3,0.00027263,2]
[355160825,1740937899453,-1129.86,0.00027263,2]
[355160826,1740937899464,-907.66,0.00027263,2]
[355160827,1740937899477,-1407.11,0.00027263,2]
[355160828,1740937899487,-686.18,0.00027263,2]
[355160829,1740937899496,-649.02,0.00027263,2]
[355160830,1740937899506,-765.63,0.00027263,2]
[355160831,1740937899515,-1189.75,0.00027263,2]
[355160832,1740937899525,-533.52,0.00027263,2]
[355160833,1740937899534,-500.0,0.00027263,2]
[355160834,1740937899544,-767.22,0.00027263,2]
[355160835,1740937899554,-2132.66,0.00027263,2]
[355160836,1740937899563,-500.0,0.00027264,2]
[355160837,1740937899572,-291.92,0.00027264,2]
[355160838,1740937899581,-500.0,0.00027264,2]
[355160839,1740937899591,-500.0,0.00027264,2]
[355160840,1740937899600,-561.04,0.00027264,2]
[355160841,1740937899610,-500.0,0.00027264,2]
[355160842,1740937899619,-571.0,0.00027264,2]
[355160843,1740937899629,-500.0,0.00027264,2]
[355160844,1740937899638,-455.62,0.00027264,2]
[355160845,1740937899648,-500.0,0.00027264,2]
[355160846,1740937899658,-554.65,0.00027264,2]
[355160847,1740937899668,-500.0,0.00027264,2]
[355160848,1740937899678,-245.24,0.00027264,2]
[355160849,1740937899688,-500.0,0.00027264,2]
[355160850,1740937899698,-500.0,0.00027264,2]
[355160851,1740937899707,-500.0,0.00027264,2]
[355160852,1740937899719,-481.93695222,0.00027297,2]
[355160853,1740937899730,-588.82,0.00027362,2]
[355160854,1740937899739,-500.0,0.00027362,2]
[355160855,1740937899749,-500.0,0.00027362,2]
[355160856,1740937899759,-500.0,0.00027362,2]
[355160857,1740937899769,-553.15,0.00027362,2]
[355160858,1740937899779,-641.23,0.00027362,2]
[355160859,1740937899789,-500.0,0.00027362,2]
[355160860,1740937899799,-500.0,0.00027362,2]
[355160861,1740937899810,-500.0,0.00027362,2]
[355160862,1740937899820,-500.0,0.00027362,2]
[355160863,1740937899830,-520.82,0.00027362,2]
[355160864,1740937899840,-500.0,0.00027362,2]
[355160865,1740937899850,-500.0,0.00027362,2]
[355160866,1740937899860,-549.79,0.00027362,2]
[355160867,1740937899869,-583.9,0.00027362,2]
[355160868,1740937899880,-500.0,0.00027362,2]
[355160869,1740937899889,-500.0,0.00027362,2]
[355160870,1740937899899,-500.0,0.00027362,2]
[355160871,1740937899908,-500.0,0.00027362,2]
[355160872,1740937899918,-500.0,0.00027362,2]
[355160873,1740937899930,-550.36,0.00027362,2]
[355160874,1740937899940,-627.32,0.00027362,2]
[355160875,1740937899950,-500.0,0.00027362,2]
[355160876,1740937899959,-500.0,0.00027362,2]
[355160877,1740937899974,-617.83,0.00027362,2]
[355160878,1740937899984,-500.0,0.00027362,2]
[355160879,1740937899995,-703.69,0.00027362,2]
[355160880,1740937900006,-599.32,0.00027362,2]
[355160881,1740937900016,-500.0,0.00027362,2]
[355160882,1740937900026,-500.0,0.00027362,2]
[355160883,1740937900036,-500.0,0.00027362,2]
[355160884,1740937900046,-670.1,0.00027362,2]
[355160885,1740937900057,-637.95,0.00027362,2]
[355160886,1740937900067,-813.8,0.00027362,2]
[355160887,1740937900077,-2192.95,0.00027362,2]
[355160888,1740937900086,-500.0,0.00027362,2]
[355160889,1740937900096,-807.59,0.00027362,2]
[355160890,1740937900107,-1250.18,0.00027362,2]
[355160891,1740937900117,-431.78,0.00027362,2]
[355160892,1740937900127,-703.25,0.00027362,2]
[355160893,1740937900137,-1557.45,0.00027362,2]
[355160894,1740937900147,-1624.15,0.00027362,2]
[355160895,1740937900156,-1549.91,0.00027362,2]
[355160896,1740937900166,-1154.14,0.00027362,2]
[355160897,1740937900175,-730.08,0.00027362,2]
[355160898,1740937900185,-500.0,0.00027362,2]
[355160899,1740937900195,-856.1,0.00027362,2]
[355160900,1740937900206,-1218.98,0.00027362,2]
[355160901,1740937900220,-1590.11,0.00027362,2]
[355160902,1740937900229,-998.58,0.00027362,2]
[355160903,1740937900239,-500.0,0.00027362,2]
[355160904,1740937900249,-761.57,0.00027362,2]
[355160905,1740937900258,-993.48,0.00027362,2]
[355160906,1740937900268,-855.19,0.00027362,2]
[355160907,1740937900278,-500.0,0.00027362,2]
[355160908,1740937900288,-925.83,0.00027362,2]
[355160909,1740937900299,-532.0,0.00027362,2]
[355160910,1740937900308,-604.56,0.00027362,2]
[355160911,1740937900318,-559.41,0.00027362,2]
[355160912,1740937900327,-500.0,0.00027362,2]
[355160913,1740937900340,-565.81,0.00027362,2]
[355160914,1740937900357,-964.16,0.00027362,2]
[355160915,1740937900367,-649.62,0.00027362,2]
[355160916,1740937900376,-500.0,0.00027362,2]
[355160917,1740937900386,-500.0,0.00027362,2]
[355160918,1740937900395,-500.0,0.00027362,2]
[355160919,1740937900404,-1097.56,0.00027362,2]
[355160920,1740937900414,-222.21,0.00027362,2]
[355160921,1740937900422,-1028.47,0.00027362,2]
[355160922,1740937900432,-868.34,0.00027362,2]
[355160923,1740937900442,-500.0,0.00027362,2]
[355160924,1740937900451,-945.74,0.00027362,2]
[355160925,1740937900461,-1222.82,0.00027362,2]
[355160926,1740937900475,-500.0,0.00027362,2]
[355160927,1740937900484,-883.05,0.00027362,2]
[355160928,1740937900494,-704.4,0.00027362,2]
[355160929,1740937900504,-6234.66,0.00027362,2]
[355160930,1740937900513,-557.6,0.00027362,2]
[355160931,1740937900522,-500.0,0.00027362,2]
[355160932,1740937900532,-500.0,0.00027362,2]
[355160933,1740937900541,-1146.22,0.00027362,2]
[355160934,1740937900550,-500.0,0.00027362,2]
[355160935,1740937900560,-500.0,0.00027362,2]
[355160936,1740937900570,-1442.71,0.00027362,2]
[355160937,1740937900579,-500.0,0.00027363,2]
[355160938,1740937900589,-500.0,0.00027363,2]
[355160939,1740937900598,-500.0,0.00027363,2]
[355160940,1740937900607,-500.0,0.00027363,2]
[355160941,1740937900616,-500.0,0.00027363,2]
[355160942,1740937900626,-500.0,0.00027363,2]
[355160943,1740937900635,-500.0,0.00027363,2]
[355160944,1740937900644,-518.68,0.00027363,2]
[355160945,1740937900653,-648.35,0.00027363,2]
[355160946,1740937900662,-500.0,0.00027363,2]
[355160947,1740937900671,-500.0,0.00027363,2]
[355160948,1740937900682,-588.19,0.00027363,2]
[355160949,1740937900692,-500.0,0.00027363,2]
[355160950,1740937900701,-500.0,0.00027363,2]
[355160951,1740937900711,-500.0,0.00027363,2]
[355160952,1740937900723,-500.0,0.00027363,2]
[355160953,1740937900733,-500.0,0.00027363,2]
[355160954,1740937900742,-500.0,0.00027363,2]
[355160955,1740937900752,-981.07,0.00027363,2]
[355160956,1740937900762,-893.26,0.00027363,2]
[355160957,1740937900771,-726.79,0.00027363,2]
[355160958,1740937900783,-616.74,0.00027363,2]
[355160959,1740937900793,-561.65,0.00027363,2]
[355160960,1740937900802,-500.0,0.00027363,2]
[355160961,1740937900811,-500.0,0.00027363,2]
[355160962,1740937900821,-500.0,0.00027363,2]
[355160963,1740937900830,-500.0,0.00027363,2]
[355160964,1740937900841,-500.0,0.00027363,2]
[355160965,1740937900850,-560.28,0.00027363,2]
[355160966,1740937900861,-500.0,0.00027363,2]
[355160967,1740937900870,-3950.62,0.00027363,2]
[355160968,1740937900879,-576.41,0.00027363,2]
[355160969,1740937900890,-500.0,0.00027363,2]
[355160970,1740937900900,-500.0,0.00027363,2]
[355160971,1740937900911,-679.32,0.00027363,2]
[355160972,1740937900920,-621.11,0.00027363,2]
[355160973,1740937900932,-500.0,0.00027363,2]
[355160974,1740937900941,-500.0,0.00027363,2]
[355160975,1740937900955,-370.77,0.00027363,2]
[355160976,1740937900966,-582.51,0.00027363,2]
[355160977,1740937900977,-668.22,0.00027363,2]
[355160978,1740937900986,-437.76,0.00027363,2]
[355160979,1740937900995,-574.39,0.00027363,2]
[355160980,1740937901006,-500.0,0.00027363,2]